bitfinex/quotes_BTCUSD_20250513
["timestamp","ask_amount","ask_price","bid_price","bid_amount"]
[1747167739527,0.002,104550.0,104540.0,1.66931367]
[1747167739760,0.017,104550.0,104540.0,1.66931367]
[1747167740617,0.017,104550.0,104540.0,1.39976563]
[1747167740816,0.019,104550.0,104540.0,1.66931367]
[1747167742425,0.004,104550.0,104540.0,1.66931367]
[1747167742635,0.0198,104550.0,104540.0,1.66931367]
[1747167742861,0.0198,104550.0,104540.0,1.68354439]
[1747167743108,0.004,104550.0,104540.0,1.68354439]
[1747167743375,0.004,104550.0,104540.0,1.79061743]
[1747167743799,0.002,104550.0,104540.0,1.79061743]
[1747167744010,0.002,104550.0,104540.0,1.79161743]
[1747167744602,0.002,104550.0,104540.0,1.79061743]
[1747167744809,0.002,104550.0,104540.0,1.77638671]
[1747167745050,0.002,104550.0,104540.0,1.77838671]
[1747167746255,0.002,104550.0,104540.0,1.54286171]
[1747167746483,0.002,104550.0,104540.0,2.45239571]
[1747167747343,0.002,104550.0,104540.0,2.13938771]
[1747167747540,0.0184,104550.0,104540.0,1.76668171]
[1747167749931,0.0184,104550.0,104540.0,2.18008171]
[1747167750977,1.16796527,104560.0,104540.0,2.17275074]
[1747167751182,1.19362833,104560.0,104550.0,1.19639481]
[1747167751412,1.21969157,104560.0,104550.0,1.19552975]
[1747167751658,1.23881869,104560.0,104550.0,1.20509436]
[1747167751882,1.420534,104560.0,104550.0,0.45557293]
[1747167752112,1.41097058,104560.0,104550.0,0.62781157]
[1747167752568,1.41097058,104560.0,104550.0,0.8191076]
[1747167752795,1.40240688,104560.0,104550.0,0.62781157]
[1747167753028,1.40140688,104560.0,104550.0,0.8191076]
[1747167753208,1.40140688,104560.0,104550.0,0.62881157]
[1747167753424,1.40140688,104560.0,104550.0,0.8201076]
[1747167754236,1.40140688,104560.0,104550.0,0.8211076]
[1747167754703,1.40140688,104560.0,104550.0,0.62981157]
[1747167756171,1.40140688,104560.0,104550.0,0.8211076]
[1747167756729,1.40140688,104560.0,104550.0,0.8306724]
[1747167756926,1.40140688,104560.0,104550.0,0.8211076]
[1747167757530,1.40140688,104560.0,104550.0,0.36026353]
[1747167757732,1.40140688,104560.0,104550.0,0.002]
[1747167757944,1.49871628,104560.0,104550.0,0.002]
[1747167758466,0.24236524,104530.0,104520.0,0.46289897]
[1747167758670,0.23279907,104530.0,104520.0,0.46289897]
[1747167758860,0.23279907,104530.0,104520.0,0.81246651]
[1747167759069,0.23279907,104530.0,104520.0,0.63066033]
[1747167759272,0.23279907,104530.0,104520.0,0.90977591]
[1747167759481,0.23279907,104530.0,104520.0,0.91934336]
[1747167759687,0.23279907,104530.0,104520.0,0.57934336]
[1747167760084,0.23379907,104530.0,104520.0,0.91934336]
[1747167760573,0.23379907,104530.0,104520.0,0.92891072]
[1747167760967,0.23379907,104530.0,104520.0,0.90977582]
[1747167761176,0.23379907,104530.0,104520.0,0.91934318]
[1747167761386,0.23379907,104530.0,104520.0,0.70885744]
[1747167761601,0.23479907,104530.0,104520.0,0.90020837]
[1747167765170,0.23479907,104530.0,104520.0,0.90977591]
[1747167766284,0.23479907,104530.0,104520.0,0.90020837]
[1747167767557,0.23479907,104530.0,104520.0,0.90977591]
[1747167768158,0.23479907,104530.0,104520.0,0.91929497]
[1747167768397,0.23479907,104530.0,104520.0,0.90972743]
[1747167769130,0.23479907,104530.0,104520.0,0.91929497]
[1747167769530,0.23479907,104530.0,104520.0,0.90972743]
[1747167769727,0.23479907,104530.0,104520.0,0.82644445]
[1747167770568,0.23479907,104530.0,104520.0,0.83601199]
[1747167770979,0.23479907,104530.0,104520.0,0.82644445]
[1747167771186,0.23479907,104530.0,104520.0,0.83594181]
[1747167771807,0.23479907,104530.0,104520.0,0.82637427]
[1747167774971,0.23479907,104530.0,104520.0,0.81685521]
[1747167775607,0.23479907,104530.0,104520.0,0.80284224]
[1747167775819,0.23479907,104530.0,104520.0,0.002]
[1747167776074,0.33210847,104530.0,104520.0,0.002]
[1747167777512,0.33210847,104530.0,104520.0,0.0116502]
[1747167777681,0.33210847,104530.0,104520.0,0.002]
[1747167777901,0.23479907,104530.0,104520.0,0.27149131]
[1747167778107,0.23479907,104530.0,104520.0,0.35320669]
[1747167779316,0.23479907,104530.0,104520.0,0.09189728]
[1747167779722,0.23479907,104530.0,104520.0,0.35120669]
[1747167782665,0.23479907,104530.0,104520.0,0.26949131]
[1747167784465,0.23241829,104520.0,104510.0,0.53136818]
[1747167784687,0.24198556,104520.0,104510.0,0.80099827]
[1747167785148,0.02870162,104520.0,104510.0,0.8362351]
[1747167785377,0.01913426,104520.0,104510.0,0.85537137]
[1747167785615,0.0315,104530.0,104520.0,0.19135093]
[1747167785871,0.24519749,104530.0,104520.0,0.73990109]
[1747167786086,0.06343149,104530.0,104520.0,0.47997723]
[1747167786527,0.06343149,104530.0,104520.0,0.48956625]
[1747167786748,0.0166,104530.0,104520.0,0.49913361]
[1747167786963,0.001,104530.0,104520.0,0.98871302]
[1747167787184,0.02213206,104530.0,104520.0,1.23655311]
[1747167787406,0.02213197,104530.0,104520.0,1.23655247]
[1747167787630,0.003,104530.0,104520.0,1.23655247]
[1747167787859,0.01256589,104530.0,104520.0,1.51984378]
[1747167788067,0.001,104530.0,104520.0,1.51984378]
[1747167788326,0.001,104530.0,104520.0,1.52084378]
[1747167788563,0.001,104530.0,104520.0,2.25007678]
[1747167788858,0.05312877,104550.0,104540.0,0.20088003]
[1747167789087,0.24765348,104550.0,104540.0,0.54646082]
[1747167789323,0.22852526,104550.0,104540.0,0.34558079]
[1747167794927,0.24792554,104550.0,104540.0,1.09898079]
[1747167795177,0.24792554,104550.0,104540.0,0.7534]
[1747167795654,0.24792554,104550.0,104540.0,0.4134]
[1747167797131,0.23187985,104540.0,104530.0,0.34]
[1747167798796,0.23187985,104540.0,104530.0,0.341]
[1747167799492,0.23187985,104540.0,104530.0,0.342]
[1747167800475,0.32918925,104540.0,104530.0,0.342]
[1747167802860,0.32918925,104540.0,104530.0,0.341]
[1747167803097,0.32918925,104540.0,104530.0,0.34]
[1747167803349,0.33618925,104540.0,104530.0,0.001]
[1747167803843,0.23189907,104530.0,104520.0,0.3494394]
[1747167804125,0.32920847,104530.0,104520.0,0.42565798]
[1747167804887,0.32920847,104530.0,104520.0,0.36375103]
[1747167805622,0.33220847,104530.0,104520.0,0.36375103]
[1747167805855,0.33220847,104530.0,104520.0,0.36475103]
[1747167805856,0.33620847,104530.0,104520.0,0.36475103]
[1747167806601,0.33620847,104530.0,104520.0,0.35531163]
[1747167807777,0.33620847,104530.0,104520.0,0.341]
[1747167808377,0.33620847,104530.0,104520.0,0.001]
[1747167808585,0.33620847,104530.0,104520.0,0.341]
[1747167809424,0.23261829,104520.0,104510.0,0.26963009]
[1747167811347,0.23261829,104520.0,104510.0,0.60963009]
[1747167811591,0.23361829,104520.0,104510.0,0.60963009]
[1747167811786,0.23561829,104520.0,104510.0,0.60963009]
[1747167813454,0.23561829,104520.0,104510.0,0.62407435]
[1747167813594,0.23561829,104520.0,104510.0,0.36407747]
[1747167813795,0.23561829,104520.0,104510.0,0.63356878]
[1747167816555,0.23561829,104520.0,104510.0,0.60963009]
[1747167817203,0.22305301,104520.0,104510.0,0.88130107]
[1747167817439,0.03170208,104520.0,104510.0,0.90616953]
[1747167817625,0.03170098,104520.0,104510.0,0.91996934]
[1747167817873,0.04126852,104520.0,104510.0,0.91040107]
[1747167818309,0.23261945,104520.0,104510.0,0.91040107]
[1747167818528,0.23061945,104520.0,104510.0,0.91040107]
[1747167818747,0.23061945,104520.0,104510.0,0.64090976]
[1747167818963,0.22105273,104520.0,104510.0,0.64090976]
[1747167819201,0.22105273,104520.0,104510.0,0.91040107]
[1747167819409,0.22005273,104520.0,104510.0,0.91040107]
[1747167819805,0.22005273,104520.0,104510.0,0.91140107]
[1747167820940,0.22005273,104520.0,104510.0,0.89760107]
[1747167822520,0.22005273,104520.0,104510.0,0.9118505]
[1747167823972,0.20773263,104530.0,104510.0,0.94464076]
[1747167824186,0.21046524,104530.0,104520.0,0.97569355]
[1747167824413,0.22003187,104530.0,104520.0,1.36603714]
[1747167824850,0.01913206,104530.0,104520.0,1.37983714]
[1747167825153,0.22959758,104530.0,104520.0,1.37983714]
[1747167825272,0.22003169,104530.0,104520.0,1.36603714]
[1747167825921,0.22103169,104530.0,104520.0,1.36603714]
[1747167826773,0.22303169,104530.0,104520.0,1.36603714]
[1747167827642,0.02869906,104530.0,104520.0,1.36603714]
[1747167827839,0.22003169,104530.0,104520.0,1.75043714]
[1747167829093,0.01913206,104530.0,104520.0,1.76000459]
[1747167829258,0.02869841,104530.0,104520.0,1.79293922]
[1747167829458,0.02869841,104530.0,104520.0,1.77380459]
[1747167829898,0.03826495,104530.0,104520.0,1.75043714]
[1747167830302,0.04783158,104530.0,104520.0,1.75043714]
[1747167830623,0.23916421,104530.0,104520.0,1.75043714]
[1747167830827,0.22959832,104530.0,104520.0,1.75043714]
[1747167831477,0.2419658,104530.0,104520.0,1.26873131]
[1747167831686,0.2419658,104530.0,104520.0,1.02389131]
[1747167831908,0.2419658,104530.0,104520.0,0.001]
[1747167831909,0.41579727,104530.0,104520.0,0.001]
[1747167832441,0.41579727,104530.0,104520.0,0.341]
[1747167832855,0.41979727,104530.0,104520.0,0.342]
[1747167833681,0.41979727,104530.0,104520.0,0.341]
[1747167833885,0.42279727,104530.0,104520.0,0.341]
[1747167834348,0.3462752,104530.0,104520.0,0.341]
[1747167838868,0.3462752,104530.0,104520.0,0.33155432]
[1747167839076,0.3462752,104530.0,104520.0,0.27049131]
[1747167842150,0.3462752,104530.0,104520.0,0.341]
[1747167843866,0.3462752,104530.0,104520.0,0.001]
[1747167844539,0.3462752,104530.0,104520.0,0.341]
[1747167844719,0.3462752,104530.0,104520.0,0.001]
[1747167847546,0.42463815,104530.0,104520.0,0.001]
[1747167847923,0.3462752,104530.0,104520.0,0.001]
[1747167851119,0.3462752,104530.0,104520.0,10.27049131]
[1747167852170,0.3462752,104530.0,104520.0,10.61049131]
[1747167852657,0.2489658,104530.0,104520.0,10.61049131]
[1747167852869,0.2336658,104530.0,104520.0,10.61049131]
[1747167854931,0.2174658,104530.0,104520.0,10.97729202]
[1747167855135,0.2174658,104530.0,104520.0,10.70780071]
[1747167855353,0.2174658,104530.0,104520.0,10.89628262]
[1747167855574,0.2174658,104530.0,104520.0,11.35416109]
[1747167855794,0.20789926,104530.0,104520.0,11.34459355]
[1747167856900,0.19833263,104530.0,104520.0,11.34459355]
[1747167857391,0.20789907,104530.0,104520.0,11.47060512]
[1747167857594,0.20789907,104530.0,104520.0,11.47060521]
[1747167857595,0.21746524,104530.0,104520.0,11.47060521]
[1747167858028,0.21746524,104530.0,104520.0,11.54877971]
[1747167858462,0.21746524,104530.0,104520.0,11.53921235]
[1747167858634,0.20789907,104530.0,104520.0,11.53921235]
[1747167858840,0.20789907,104530.0,104520.0,11.34786142]
[1747167859516,0.20789907,104530.0,104520.0,11.23647202]
[1747167860316,0.20789907,104530.0,104520.0,11.42782295]
[1747167860531,0.20389907,104530.0,104520.0,11.42682295]
[1747167860735,0.20089907,104530.0,104520.0,11.42682295]
[1747167862726,0.20651432,104540.0,104530.0,10.42262817]
[1747167863178,0.20951432,104540.0,104530.0,10.42262817]
[1747167863392,0.21351432,104540.0,104530.0,10.42362817]
[1747167865056,0.22901432,104540.0,104530.0,10.42362817]
[1747167865492,0.22901432,104540.0,104530.0,10.40659224]
[1747167868306,0.21351432,104540.0,104530.0,10.40659224]
[1747167868523,0.21351432,104540.0,104530.0,10.13710093]
[1747167868744,0.21351432,104540.0,104530.0,10.40659224]
[1747167869391,0.22921432,104540.0,104530.0,10.40659224]
[1747167869608,0.22921432,104540.0,104530.0,10.50390164]
[1747167872559,0.22921432,104540.0,104530.0,10.13710093]
[1747167872770,0.22921432,104540.0,104530.0,10.40659224]
[1747167874478,0.19329603,104550.0,104540.0,9.56688661]
[1747167874700,0.29060543,104550.0,104540.0,9.90688661]
[1747167875769,0.29560543,104550.0,104540.0,9.90788661]
[1747167876185,0.29860543,104550.0,104540.0,10.00519601]
[1747167877142,0.29860543,104550.0,104540.0,9.66519601]
[1747167877655,0.33040543,104550.0,104540.0,9.56788661]
[1747167878139,0.57200543,104550.0,104540.0,9.56788661]
[1747167883258,0.84149674,104550.0,104540.0,9.56788661]
[1747167884356,0.57200543,104550.0,104540.0,9.56788661]
[1747167886640,0.58200543,104550.0,104540.0,9.56788661]
[1747167886841,0.86141674,104550.0,104540.0,9.56788661]
[1747167887593,0.96211674,104550.0,104540.0,9.56788661]
[1747167887842,0.59192543,104550.0,104540.0,9.56788661]
[1747167888052,0.86141674,104550.0,104540.0,9.56788661]
[1747167888255,0.59192543,104550.0,104540.0,9.66519601]
[1747167888630,0.59192543,104550.0,104540.0,9.56788661]
[1747167891412,0.86141674,104550.0,104540.0,9.56788661]
[1747167895879,0.59192543,104550.0,104540.0,9.56788661]
[1747167896124,0.86141674,104550.0,104540.0,9.56788661]
[1747167903179,0.85959651,104550.0,104540.0,9.56788661]
[1747167903417,0.8205852,104550.0,104540.0,9.66519601]
[1747167903876,0.8205852,104550.0,104540.0,9.56788661]
[1747167906038,1.09007651,104550.0,104540.0,9.56788661]
[1747167908133,1.50339651,104550.0,104540.0,9.56788661]
[1747167909327,1.41083349,104550.0,104540.0,9.56788661]
[1747167909551,1.2339052,104550.0,104540.0,9.56788661]
[1747167909765,1.41083349,104550.0,104540.0,9.66519601]
[1747167909964,1.41083349,104550.0,104540.0,9.56788661]
[1747167911268,1.2239052,104550.0,104540.0,9.56788661]
[1747167911490,1.41083349,104550.0,104540.0,9.56788661]
[1747167911994,2.2225241,104550.0,104540.0,9.56788661]
[1747167912207,3.11607713,104550.0,104540.0,8.94721704]
[1747167912436,3.24015484,104550.0,104540.0,8.76789151]
[1747167912887,5.57669784,104550.0,104540.0,8.67605523]
[1747167913165,10.62369784,104550.0,104540.0,8.67605523]
[1747167913387,10.62369784,104550.0,104540.0,8.67505523]
[1747167913388,8.03157884,104550.0,104540.0,8.67505523]
[1747167913603,2.9616307,104550.0,104540.0,8.67605523]
[1747167914027,2.9386307,104550.0,104540.0,8.67505523]
[1747167914475,2.9386307,104550.0,104540.0,8.67605523]
[1747167914476,2.43084583,104550.0,104540.0,8.67605523]
[1747167914680,2.9616307,104550.0,104540.0,8.67605523]
[1747167915115,2.90610863,104550.0,104540.0,8.67705523]
[1747167915359,3.13903458,104550.0,104540.0,8.67605523]
[1747167915622,3.16203458,104550.0,104540.0,8.67705523]
[1747167915850,3.13526627,104550.0,104540.0,8.67705523]
[1747167916081,3.15946074,104550.0,104540.0,8.67705523]
[1747167916528,3.13274627,104550.0,104540.0,8.67705523]
[1747167916745,2.65326627,104550.0,104540.0,8.67705523]
[1747167916995,3.13270627,104550.0,104540.0,8.67705523]
[1747167918435,3.15940675,104550.0,104540.0,8.67705523]
[1747167918650,2.72392127,104550.0,104540.0,8.67705523]
[1747167918862,2.92697727,104550.0,104540.0,8.67705523]
[1747167919290,2.72388127,104550.0,104540.0,8.67705523]
[1747167919515,2.24456127,104550.0,104540.0,8.67705523]
[1747167919779,2.72388127,104550.0,104540.0,8.67705523]
[1747167921019,2.77388127,104550.0,104540.0,8.67705523]
[1747167922215,2.8005485,104550.0,104540.0,8.67705523]
[1747167927002,2.8578085,104550.0,104540.0,8.67705523]
[1747167927252,2.07896268,104550.0,104540.0,8.67705523]
[1747167927486,2.8574085,104550.0,104540.0,8.67705523]
[1747167928680,2.8574085,104550.0,104540.0,8.41174361]
[1747167928919,2.83070127,104550.0,104540.0,8.41174361]
[1747167930136,2.29109545,104550.0,104540.0,8.41174361]
[1747167930359,2.83070127,104550.0,104540.0,8.41174361]
[1747167931920,2.77344127,104550.0,104540.0,8.41174361]
[1747167932651,2.67274127,104550.0,104540.0,8.41174361]
[1747167934290,4.62211613,104550.0,104540.0,8.36000745]
[1747167934502,9.67211613,104550.0,104540.0,8.36000745]
[1747167934721,9.16993913,104550.0,104540.0,8.36000745]
[1747167934964,9.15384413,104550.0,104540.0,8.27002745]
[1747167935890,9.15384413,104550.0,104540.0,7.57653383]
[1747167936113,9.15384413,104550.0,104540.0,7.55811383]
[1747167936114,9.12718527,104550.0,104540.0,7.55811383]
[1747167936340,9.06555327,104550.0,104540.0,7.55447571]
[1747167936566,8.74661327,104550.0,104540.0,7.55447571]
[1747167936796,8.74661327,104550.0,104540.0,7.54516571]
[1747167937063,8.30199727,104550.0,104540.0,7.54516571]
[1747167937311,8.60199727,104550.0,104540.0,7.54516571]
[1747167937603,2.48167181,104550.0,104540.0,7.54516571]
[1747167939349,2.66713995,104550.0,104540.0,7.54516571]
[1747167941192,2.66713995,104550.0,104540.0,7.36293209]
[1747167941672,2.36713995,104550.0,104540.0,7.36293209]
[1747167941903,2.66713995,104550.0,104540.0,7.36293209]
[1747167944567,2.69389063,104550.0,104540.0,7.36293209]
[1747167944802,3.61632563,104550.0,104540.0,7.36293209]
[1747167945619,2.69389063,104550.0,104540.0,7.36293209]
[1747167945854,2.93394763,104550.0,104540.0,7.36293209]
[1747167946080,2.69389063,104550.0,104540.0,7.36293209]
[1747167946318,2.45561063,104550.0,104540.0,7.36293209]
[1747167946575,2.45561063,104550.0,104540.0,7.39493209]
[1747167946576,2.69345063,104550.0,104540.0,7.39493209]
[1747167947724,2.79415063,104550.0,104540.0,7.39493209]
[1747167950774,2.79415063,104550.0,104540.0,7.36293209]
[1747167951190,3.74145663,104550.0,104540.0,7.36293209]
[1747167951392,8.79145663,104550.0,104540.0,7.36293209]
[1747167951606,8.84938663,104550.0,104540.0,7.35035209]
[1747167951814,8.74195663,104550.0,104540.0,7.35035209]
[1747167952024,8.74195663,104550.0,104540.0,7.3024965]
[1747167952247,7.84465063,104550.0,104540.0,7.3024965]
[1747167952451,8.50385263,104550.0,104540.0,7.3024965]
[1747167953941,8.235221,104550.0,104540.0,6.36189893]
[1747167954180,8.216221,104550.0,104540.0,6.08827868]
[1747167954391,8.193221,104550.0,104540.0,6.03941942]
[1747167954657,8.193221,104550.0,104540.0,6.02487942]
[1747167954860,8.220221,104550.0,104540.0,6.00843942]
[1747167955065,8.220221,104550.0,104540.0,5.98702942]
[1747167955271,8.247221,104550.0,104540.0,5.96402942]
[1747167955495,8.247221,104550.0,104540.0,5.91617016]
[1747167955727,8.247221,104550.0,104540.0,5.89947016]
[1747167956156,8.247221,104550.0,104540.0,5.87293016]
[1747167956791,8.14412763,104550.0,104540.0,5.87293016]
[1747167957048,8.09931663,104550.0,104540.0,5.853034]
[1747167959053,7.62311663,104550.0,104540.0,5.77840418]
[1747167959280,8.09867663,104550.0,104540.0,5.77840418]
[1747167959481,8.09867663,104550.0,104540.0,5.80960418]
[1747167959682,7.46056638,104550.0,104540.0,5.80960418]
[1747167959941,1.96814813,104550.0,104540.0,5.80960418]
[1747167960153,1.96814813,104550.0,104540.0,5.78970802]
[1747167960360,2.01814813,104550.0,104540.0,5.78970802]
[1747167960835,2.03268898,104550.0,104540.0,5.78970802]
[1747167961043,1.79552898,104550.0,104540.0,5.78970802]
[1747167961252,2.07995838,104550.0,104540.0,5.78970802]
[1747167961456,2.12995838,104550.0,104540.0,5.78970802]
[1747167961646,2.03264898,104550.0,104540.0,5.78970802]
[1747167964732,2.30242123,104550.0,104540.0,5.78970802]
[1747167965661,2.03264898,104550.0,104540.0,5.78970802]
[1747167969550,2.73334898,104550.0,104540.0,5.76981186]
[1747167969795,3.00312123,104550.0,104540.0,5.73861186]
[1747167970012,9.72151963,104550.0,104540.0,5.72186227]
[1747167970214,9.60835063,104550.0,104540.0,5.72186227]
[1747167970350,9.51593463,104550.0,104540.0,5.71540395]
[1747167970548,9.51593463,104550.0,104540.0,5.71079888]
[1747167971352,9.51593463,104550.0,104540.0,5.70579888]
[1747167971554,9.51693463,104550.0,104540.0,5.61819888]
[1747167971735,9.51693463,104550.0,104540.0,5.5504467]
[1747167972152,9.51693463,104550.0,104540.0,5.4615467]
[1747167972582,9.41623463,104550.0,104540.0,5.4615467]
[1747167972796,9.41623463,104550.0,104540.0,5.4149667]
[1747167973850,9.41623463,104550.0,104540.0,5.4079067]
[1747167974068,9.41623463,104550.0,104540.0,5.37045671]
[1747167974287,9.41523463,104550.0,104540.0,5.37045671]
[1747167975193,8.65314063,104550.0,104540.0,5.40595671]
[1747167975423,7.51359613,104550.0,104540.0,5.40595671]
[1747167975650,7.29811038,104550.0,104540.0,5.40595671]
[1747167975881,2.08098813,104550.0,104540.0,5.38606055]
[1747167976096,2.31734813,104550.0,104540.0,5.38606055]
[1747167976739,2.33188898,104550.0,104540.0,5.38606055]
[1747167978448,2.28188898,104550.0,104540.0,5.38606055]
[1747167978676,2.33188898,104550.0,104540.0,5.38606055]
[1747167980266,1.98188898,104550.0,104540.0,5.38606055]
[1747167980477,1.74552898,104550.0,104540.0,5.38606055]
[1747167980684,2.03168898,104550.0,104540.0,5.36616439]
[1747167980886,1.71191673,104550.0,104540.0,5.36616439]
[1747167981092,2.07899838,104550.0,104540.0,5.36616439]
[1747167981315,2.12899838,104550.0,104540.0,5.36616439]
[1747167983225,2.07899838,104550.0,104540.0,5.36616439]
[1747167983428,2.12899838,104550.0,104540.0,5.36616439]
[1747167984960,2.53899838,104550.0,104540.0,5.36616439]
[1747167985399,2.48899838,104550.0,104540.0,5.36616439]
[1747167986047,2.53899838,104550.0,104540.0,5.36616439]
[1747167988546,2.48899838,104550.0,104540.0,5.36616439]
[1747167988784,2.53899838,104550.0,104540.0,5.36616439]
[1747167991307,2.53899838,104550.0,104540.0,5.36616439]
[1747167991518,2.80877063,104550.0,104540.0,5.36616439]
[1747167992673,2.90947063,104550.0,104540.0,5.36616439]
[1747167992817,2.80877063,104550.0,104540.0,5.36616439]
[1747167993838,2.75877063,104550.0,104540.0,5.36616439]
[1747167994047,2.80877063,104550.0,104540.0,5.36616439]
[1747167994254,2.81935381,104550.0,104540.0,5.36616439]
[1747167994843,2.81935381,104550.0,104540.0,5.34626823]
[1747167997101,2.76935381,104550.0,104540.0,5.34626823]
[1747167997259,2.45227216,104550.0,104540.0,5.34626823]
[1747167997611,2.40227216,104550.0,104540.0,5.34626823]
[1747167997828,2.18249991,104550.0,104540.0,5.34626823]
[1747167998038,2.40227216,104550.0,104540.0,5.34626823]
[1747167998226,2.54958156,104550.0,104540.0,5.34626823]
[1747167998438,2.49958156,104550.0,104540.0,5.34626823]
[1747167998651,2.54958156,104550.0,104540.0,5.34626823]
[1747167999414,2.4568047,104550.0,104540.0,5.34626823]
[1747168000461,2.4068047,104550.0,104540.0,5.34626823]
[1747168000886,2.4568047,104550.0,104540.0,5.34626823]
[1747168002197,2.4068047,104550.0,104540.0,5.34626823]
[1747168002405,2.0733353,104550.0,104540.0,5.34626823]
[1747168002644,1.9683753,104550.0,104540.0,5.34626823]
[1747168002890,2.3083753,104550.0,104540.0,5.34626823]
[1747168006642,2.3081753,104550.0,104540.0,5.34626823]
[1747168007555,1.90567673,104550.0,104540.0,5.34626823]
[1747168007792,2.12593588,104550.0,104540.0,5.32637207]
[1747168008013,1.78593588,104550.0,104540.0,5.32637207]
[1747168008260,2.09893588,104550.0,104540.0,5.32637207]
[1747168008443,2.07193588,104550.0,104540.0,5.32637207]
[1747168008697,2.09893588,104550.0,104540.0,5.32637207]
[1747168009131,2.09693588,104550.0,104540.0,5.32637207]
[1747168009313,2.12393588,104550.0,104540.0,5.32637207]
[1747168010692,2.12065588,104550.0,104540.0,5.32637207]
[1747168011267,2.0939052,104550.0,104540.0,5.32637207]
[1747168011511,2.2629504,104560.0,104550.0,3.23346687]
[1747168011757,3.3435398,104560.0,104550.0,3.23346687]
[1747168012586,3.16654441,104560.0,104550.0,3.23346687]
[1747168012812,3.34358812,104560.0,104550.0,3.23346687]
[1747168013209,3.37058812,104560.0,104550.0,3.23446687]
[1747168013530,3.71058812,104560.0,104550.0,3.23446687]
[1747168014360,3.71758812,104560.0,104550.0,3.23546687]
[1747168018614,3.70268727,104560.0,104550.0,3.21557071]
[1747168019052,3.77676801,104560.0,104550.0,3.21557071]
[1747168019479,3.70268727,104560.0,104550.0,3.21557071]
[1747168021727,3.87968266,104560.0,104550.0,3.21557071]
[1747168022145,3.70268727,104560.0,104550.0,3.21557071]
[1747168022630,3.70268727,104560.0,104550.0,3.19567455]
[1747168022631,3.54023273,104560.0,104550.0,3.19567455]
[1747168022848,3.89422351,104560.0,104550.0,3.19567455]
[1747168023239,3.71722812,104560.0,104550.0,3.19567455]
[1747168024224,1.84784896,104560.0,104550.0,0.0385]
[1747168024434,2.44176125,104560.0,104550.0,0.0385]
[1747168025057,2.34445185,104560.0,104550.0,0.0385]
[1747168025276,1.69797646,104560.0,104550.0,0.0385]
[1747168025522,1.99006107,104560.0,104550.0,0.0385]
[1747168025765,1.72942022,104560.0,104550.0,0.0385]
[1747168025975,1.96322022,104560.0,104550.0,0.01860384]
[1747168026433,1.97269764,104560.0,104550.0,0.01860384]
[1747168027520,2.31269764,104560.0,104550.0,0.01860384]
[1747168028763,1.62759764,104560.0,104550.0,0.01860384]
[1747168028974,1.62759764,104560.0,104550.0,0.03680384]
[1747168029419,0.29564022,104560.0,104550.0,0.39079462]
[1747168029660,0.17843082,104560.0,104550.0,0.46522583]
[1747168029875,0.12113082,104560.0,104550.0,0.81522583]
[1747168030099,0.12113082,104560.0,104550.0,0.63823044]
[1747168031287,0.12113082,104560.0,104550.0,0.65160908]
[1747168031510,0.12113082,104560.0,104550.0,0.65060908]
[1747168031932,0.12313082,104560.0,104550.0,0.65060908]
[1747168032353,0.12313082,104560.0,104550.0,0.65560908]
[1747168033313,0.12313082,104560.0,104550.0,0.74799337]
[1747168041876,0.12313082,104560.0,104550.0,0.67356216]
[1747168042127,0.22044022,104560.0,104550.0,0.39980384]
[1747168042805,0.22044022,104560.0,104550.0,0.05980384]
[1747168044641,0.21993333,104560.0,104550.0,0.05980384]
[1747168046139,0.21993333,104560.0,104550.0,0.04980384]
[1747168046345,0.21993333,104560.0,104550.0,0.05980384]
[1747168047615,0.21993333,104560.0,104550.0,0.04980384]
[1747168047837,0.21993333,104560.0,104550.0,0.05980384]
[1747168049214,0.21993333,104560.0,104550.0,0.12816831]
[1747168049416,0.21993333,104560.0,104550.0,0.05980384]
[1747168056279,0.39674678,104560.0,104550.0,0.005]
[1747168056508,0.65728678,104560.0,104550.0,3e-06]
[1747168056972,0.68608678,104560.0,104550.0,3e-06]
[1747168058798,0.50927333,104560.0,104550.0,3e-06]
[1747168059044,0.45197333,104560.0,104550.0,3e-06]
[1747168059948,0.47927333,104560.0,104550.0,3e-06]
[1747168061953,0.57658273,104560.0,104550.0,3e-06]
[1747168062180,0.87490325,104560.0,104550.0,3e-06]
[1747168062453,0.77759385,104560.0,104550.0,3e-06]
[1747168064297,0.50807333,104560.0,104550.0,3e-06]
[1747168069369,0.77759385,104560.0,104550.0,3e-06]
[1747168070505,0.47927333,104560.0,104550.0,3e-06]
[1747168072925,0.71119333,104560.0,104550.0,3e-06]
[1747168073373,0.75428567,104560.0,104550.0,3e-06]
[1747168075040,1.24218078,104570.0,104560.0,9.24571433]
[1747168075295,1.80245018,104570.0,104560.0,9.24571433]
[1747168075517,1.81699103,104570.0,104560.0,9.24571433]
[1747168077251,1.54747051,104570.0,104560.0,9.24571433]
[1747168077479,1.81699103,104570.0,104560.0,9.24571433]
[1747168077690,1.71699103,104570.0,104560.0,9.24571433]
[1747168078110,1.74579103,104570.0,104560.0,9.24571433]
[1747168079511,1.65318319,104570.0,104560.0,9.24571433]
[1747168080383,1.65318319,104570.0,104560.0,9.01872603]
[1747168080796,1.83009587,104570.0,104560.0,9.01872603]
[1747168081225,1.65318319,104570.0,104560.0,9.01872603]
[1747168082529,1.75049259,104570.0,104560.0,9.01872603]
[1747168082746,1.92740527,104570.0,104560.0,9.01872603]
[1747168083381,1.83009587,104570.0,104560.0,9.01872603]
[1747168084441,1.83009587,104570.0,104560.0,8.99882987]
[1747168084889,1.83009587,104570.0,104560.0,8.97893371]
[1747168088559,1.47627051,104570.0,104560.0,8.97893371]
[1747168088774,1.83009587,104570.0,104560.0,8.97893371]
[1747168090239,1.75049259,104570.0,104560.0,8.97893371]
[1747168090431,1.77718625,104570.0,104560.0,8.97893371]
[1747168091200,1.95409893,104570.0,104560.0,8.97893371]
[1747168093201,1.77718625,104570.0,104560.0,8.97893371]
[1747168093415,1.67987685,104570.0,104560.0,8.97893371]
[1747168093644,0.97046332,104570.0,104560.0,8.97893371]
[1747168093889,1.06408966,104570.0,104560.0,9.03603371]
[1747168094182,1.40408966,104570.0,104560.0,9.03603371]
[1747168094619,1.58100234,104570.0,104560.0,9.03603371]
[1747168095276,1.40408966,104570.0,104560.0,9.03603371]
[1747168095482,1.58100234,104570.0,104560.0,9.03603371]
[1747168101445,1.70581174,104570.0,104560.0,8.97893371]
[1747168101725,1.85335668,104570.0,104560.0,8.97893371]
[1747168101939,1.676444,104570.0,104560.0,8.97893371]
[1747168103241,1.49953132,104570.0,104560.0,8.97893371]
[1747168103450,1.676444,104570.0,104560.0,8.97893371]
[1747168103877,1.7737534,104570.0,104560.0,8.97893371]
[1747168104289,1.3134334,104570.0,104560.0,8.97893371]
[1747168104498,1.7731134,104570.0,104560.0,8.97893371]
[1747168104716,1.7464134,104570.0,104560.0,8.97893371]
[1747168104931,1.649104,104570.0,104560.0,8.97893371]
[1747168105575,1.621604,104570.0,104560.0,8.97893371]
[1747168106044,1.621524,104570.0,104560.0,9.00693371]